fUSD/lending_fUSD_20250616
["ID","MTS","AMOUNT","RATE_DAILY","PERIOD"]
[366070080,1750048249181,-492.00723609,0.00016438,2]
[366070081,1750048249193,-490.0,0.00016438,2]
[366070082,1750048249205,-490.0,0.00016438,2]
[366070083,1750048249217,-448.78937037,0.00016438,2]
[366070084,1750048249229,-300.15643806,0.00016438,2]
[366070085,1750048249240,-1666.82,0.00016438,2]
[366070086,1750048249252,-490.0,0.00016438,2]
[366070087,1750048249265,-252.452504,0.00016438,2]
[366070088,1750048249277,-1727.05,0.00016438,2]
[366070089,1750048249288,-155.84472599,0.00016438,2]
[366070090,1750048249300,-490.0,0.00016438,2]
[366070091,1750048249312,-861.44,0.00016438,2]
[366070092,1750048249325,-490.0,0.00016438,2]
[366070093,1750048249336,-490.0,0.00016438,2]
[366070094,1750048249348,-490.0,0.00016438,2]
[366070095,1750048249360,-490.0,0.00016438,2]
[366070096,1750048249371,-567.47,0.00016438,2]
[366070097,1750048249382,-724.74,0.00016438,2]
[366070098,1750048249394,-4532.25,0.00016438,2]
[366070099,1750048249406,-490.0,0.00016438,2]
[366070100,1750048249417,-490.0,0.00016438,2]
[366070101,1750048249429,-490.0,0.00016438,2]
[366070102,1750048249441,-547.06975482,0.00016438,2]
[366070103,1750048249453,-1433.27,0.00016438,2]
[366070104,1750048249465,-493.7286056,0.00016438,2]
[366070105,1750048249476,-492.12463328,0.00016438,2]
[366070106,1750048249487,-497.03590707,0.00016438,2]
[366070107,1750048249499,-491.93552755,0.00016438,2]
[366070108,1750048249510,-1557.18,0.00016438,2]
[366070109,1750048249523,-491.05454605,0.00016438,2]
[366070110,1750048249534,-1024.46,0.00016438,2]
[366070111,1750048249547,-605.4,0.00016438,2]
[366070112,1750048249558,-151.0,0.00016438,2]
[366070113,1750048249570,-490.0,0.00016438,2]
[366070114,1750048249583,-490.0,0.00016438,2]
[366070115,1750048249595,-504.00148004,0.00016438,2]
[366070116,1750048249606,-174.39409808,0.00016438,2]
[366070117,1750048249617,-151.0,0.00016438,2]
[366070118,1750048249629,-1103.11,0.00016438,2]
[366070119,1750048249640,-493.78336874,0.00016438,2]
[366070120,1750048249652,-1099.09,0.00016438,2]
[366070121,1750048249665,-490.0,0.00016438,2]
[366070122,1750048249677,-490.0,0.00016438,2]
[366070123,1750048249688,-880.59,0.00016438,2]
[366070124,1750048249700,-1149.13,0.00016438,2]
[366070125,1750048249711,-490.0,0.00016438,2]
[366070126,1750048249723,-5414.2,0.00016438,2]
[366070127,1750048249734,-151.307466,0.00016438,2]
[366070128,1750048249746,-318.42848246,0.00016438,2]
[366070129,1750048249757,-490.0,0.00016438,2]
[366070130,1750048249768,-1923.9,0.00016438,2]
[366070131,1750048249780,-490.0,0.00016438,2]
[366070132,1750048249791,-490.0,0.00016438,2]
[366070133,1750048249802,-151.0,0.00016438,2]
[366070134,1750048249814,-490.0,0.00016438,2]
[366070135,1750048249825,-151.0,0.00016438,2]
[366070136,1750048249837,-490.0,0.00016438,2]
[366070137,1750048249848,-490.0,0.00016438,2]
[366070138,1750048249859,-490.0,0.00016438,2]
[366070139,1750048249871,-497.10639667,0.00016438,2]
[366070140,1750048249891,-837.54,0.00016438,2]
[366070141,1750048249905,-844.31,0.00016438,2]
[366070142,1750048249922,-2087.33,0.00016438,2]
[366070143,1750048249935,-872.32,0.00016438,2]
[366070144,1750048249947,-151.0,0.00016438,2]
[366070145,1750048249960,-1791.07,0.00016438,2]
[366070146,1750048249971,-436.37575592,0.00016438,2]
[366070147,1750048249985,-3968.73,0.00016438,2]
[366070148,1750048249996,-492.6976837,0.00016438,2]
[366070149,1750048250008,-2403.24,0.00016438,2]
[366070150,1750048250021,-1609.4,0.00016438,2]
[366070151,1750048250033,-496.53153022,0.00016438,2]
[366070152,1750048250044,-778.69,0.00016438,2]
[366070153,1750048250056,-440.0,0.00016438,2]
[366070154,1750048250069,-490.0,0.00016438,2]
[366070155,1750048250080,-490.0,0.00016438,2]
[366070156,1750048250093,-490.0,0.00016438,2]
[366070157,1750048250105,-749.59,0.00016438,2]
[366070158,1750048250117,-2845.7,0.00016438,2]
[366070159,1750048250129,-3241.27,0.00016438,2]
[366070160,1750048250140,-2452.5,0.00016438,2]
[366070161,1750048250153,-493.67045002,0.00016438,2]
[366070162,1750048250165,-491.74115082,0.00016438,2]
[366070163,1750048250178,-2803.2,0.00016438,2]
[366070164,1750048250190,-490.0,0.00016438,2]
[366070165,1750048250202,-680.08,0.00016438,2]
[366070166,1750048250214,-732.62,0.00016438,2]
[366070167,1750048250226,-1180.45,0.00016438,2]
[366070168,1750048250238,-622.74887609,0.00016438,2]
[366070169,1750048250250,-151.0,0.00016438,2]
[366070170,1750048250262,-490.0,0.00016438,2]
[366070171,1750048250275,-490.0,0.00016438,2]
[366070172,1750048250287,-490.0,0.00016438,2]
[366070173,1750048250304,-490.0,0.00016438,2]
[366070174,1750048250316,-521.86,0.00016438,2]
[366070175,1750048250328,-662.96,0.00016438,2]
[366070176,1750048250339,-558.83,0.00016438,2]
[366070177,1750048250351,-2760.31,0.00016438,2]
[366070178,1750048250363,-2159.37,0.00016438,2]
[366070179,1750048250374,-1232.24,0.00016438,2]
[366070180,1750048250387,-5297.07,0.00016438,2]
[366070181,1750048250398,-490.0,0.00016438,2]
[366070182,1750048250411,-151.0,0.00016438,2]
[366070183,1750048250422,-2112.91,0.00016438,2]
[366070184,1750048250433,-658.96,0.00016438,2]
[366070185,1750048250444,-1142.66,0.00016438,2]
[366070186,1750048250456,-460.0,0.00016438,2]
[366070187,1750048250467,-470.0,0.00016438,2]
[366070188,1750048250479,-494.36688997,0.00016438,2]
[366070189,1750048250490,-1735.58,0.00016438,2]
[366070190,1750048250501,-490.0,0.00016438,2]
[366070191,1750048250512,-1166.33,0.00016438,2]
[366070192,1750048250524,-493.5353936,0.00016438,2]
[366070193,1750048250536,-490.0,0.00016438,2]
[366070194,1750048250547,-490.0,0.00016438,2]
[366070195,1750048250558,-490.0,0.00016438,2]
[366070196,1750048250569,-2174.68,0.00016438,2]
[366070197,1750048250580,-490.0,0.00016438,2]
[366070198,1750048250592,-2867.42,0.00016438,2]
[366070199,1750048250605,-1122.74,0.00016438,2]
[366070200,1750048250617,-164.15426659,0.00016438,2]
[366070201,1750048250628,-3693.76,0.00016438,2]
[366070202,1750048250640,-490.0,0.00016438,2]
[366070203,1750048250653,-490.0,0.00016438,2]
[366070204,1750048250665,-2217.26,0.00016438,2]
[366070205,1750048250677,-1283.5,0.00016438,2]
[366070206,1750048250689,-481.24287783,0.00016438,2]
[366070207,1750048250701,-4917.36,0.00016438,2]
[366070208,1750048250712,-2140.49,0.00016438,2]
[366070209,1750048250723,-490.0,0.00016438,2]
[366070210,1750048250749,-10257.87,0.00016438,2]
[366070211,1750048250763,-724.48,0.00016438,2]
[366070212,1750048250777,-581.5,0.00016438,2]
[366070213,1750048250791,-2473.55,0.00016438,2]
[366070214,1750048250804,-638.07,0.00016438,2]
[366070215,1750048250818,-3205.67,0.00016438,2]
[366070216,1750048250832,-8019.0,0.00016438,2]
[366070217,1750048250845,-491.61421946,0.00016438,2]
[366070218,1750048250858,-593.88,0.00016438,2]
[366070219,1750048250872,-1726.04,0.00016438,2]
[366070220,1750048250886,-492.38736297,0.00016438,2]
[366070221,1750048250900,-810.82,0.00016438,2]
[366070222,1750048250919,-151.0,0.00016438,2]
[366070223,1750048250933,-490.0,0.00016438,2]
[366070224,1750048250948,-1134.73,0.00016438,2]
[366070225,1750048250962,-507.3207303,0.00016438,2]
[366070226,1750048250974,-1307.42,0.00016438,2]
[366070227,1750048250987,-490.0,0.00016438,2]
[366070228,1750048251000,-848.84,0.00016438,2]
[366070229,1750048251014,-151.0,0.00016438,2]
[366070230,1750048251026,-4548.07,0.00016438,2]
[366070231,1750048251041,-170.667359,0.00016438,2]
[366070232,1750048251055,-1731.94,0.00016438,2]
[366070233,1750048251067,-490.0,0.00016438,2]
[366070234,1750048251081,-277.194465,0.00016438,2]
[366070235,1750048251094,-2879.97,0.00016438,2]
[366070236,1750048251108,-490.0,0.00016438,2]
[366070237,1750048251122,-170.667359,0.00016438,2]
[366070238,1750048251142,-490.0,0.00016438,2]
[366070239,1750048251157,-490.0,0.00016438,2]
[366070240,1750048251173,-277.194465,0.00016438,2]
[366070241,1750048251188,-3068.09,0.00016438,2]
[366070242,1750048251204,-1215.5,0.00016438,2]
[366070243,1750048251220,-2660.89,0.00016438,2]
[366070244,1750048251235,-2112.77,0.00016438,2]
[366070245,1750048251252,-490.0,0.00016438,2]
[366070246,1750048251267,-504.50713082,0.00016438,2]
[366070247,1750048251282,-1718.48,0.00016438,2]
[366070248,1750048251297,-654.0,0.00016438,2]
[366070249,1750048251312,-492.6169623,0.00016438,2]
[366070250,1750048251326,-1521.4,0.00016438,2]
[366070251,1750048251340,-962.55,0.00016438,2]
[366070252,1750048251354,-151.922812,0.00016438,2]
[366070253,1750048251369,-403.51221179,0.00016438,2]
[366070254,1750048251383,-490.0,0.00016438,2]
[366070255,1750048252400,-493.36340146,0.00016438,2]
[366070256,1750048252464,-7802.55,0.00016438,2]
[366070257,1750048252501,-490.0,0.00016438,2]
[366070258,1750048252516,-1864.46,0.00016438,2]
[366070259,1750048252525,-490.0,0.00016438,2]
[366070260,1750048252535,-275.95425094,0.00016438,2]
[366070261,1750048252544,-1326.47,0.00016438,2]
[366070262,1750048252553,-497.57872202,0.00016438,2]
[366070263,1750048252562,-490.0,0.00016438,2]
[366070264,1750048252572,-5301.73,0.00016438,2]
[366070265,1750048252582,-490.0,0.00016438,2]
[366070266,1750048252592,-11796.17,0.00016438,2]
[366070267,1750048252602,-1633.86,0.00016438,2]
[366070268,1750048252611,-716.45,0.00016438,2]
[366070269,1750048252620,-192.78794492,0.00016438,2]
[366070270,1750048252629,-490.0,0.00016438,2]
[366070271,1750048252638,-490.0,0.00016438,2]
[366070272,1750048252648,-1477.4,0.00016438,2]
[366070273,1750048252658,-490.0,0.00016438,2]
[366070274,1750048252667,-490.0,0.00016438,2]
[366070275,1750048252677,-1793.49,0.00016438,2]
[366070276,1750048252687,-2528.05,0.00016438,2]
[366070277,1750048252697,-490.0,0.00016438,2]
[366070278,1750048252707,-1080.52,0.00016438,2]
[366070279,1750048252718,-3243.95,0.00016438,2]
[366070280,1750048252727,-8405.48,0.00016438,2]
[366070281,1750048252737,-3121.5,0.00016438,2]
[366070282,1750048252746,-1851.67,0.00016438,2]
[366070283,1750048252756,-491.5898332,0.00016438,2]
[366070284,1750048252765,-490.0,0.00016438,2]
[366070285,1750048252774,-625.37,0.00016438,2]
[366070286,1750048252784,-490.0,0.00016438,2]
[366070287,1750048252793,-1675.43,0.00016438,2]
[366070288,1750048252803,-491.24434573,0.00016438,2]
[366070289,1750048252813,-406.65545927,0.00016438,2]
[366070290,1750048252822,-690.1,0.00016438,2]
[366070291,1750048252832,-490.0,0.00016438,2]
[366070292,1750048252841,-4431.5,0.00016438,2]
[366070293,1750048252851,-2780.92,0.00016438,2]
[366070294,1750048252860,-150.0,0.00016438,2]
[366070295,1750048252869,-1215.17,0.00016438,2]
[366070296,1750048252879,-150.0,0.00016438,2]
[366070297,1750048252889,-500.0,0.00016438,2]
[366070298,1750048252898,-2249.61,0.00016438,2]
[366070299,1750048252908,-500.0,0.00016438,2]
[366070300,1750048252920,-500.0,0.00016438,2]
[366070301,1750048252930,-154.18565483,0.00016438,2]
[366070302,1750048252940,-500.0,0.00016438,2]
[366070303,1750048252950,-151.0,0.00016438,2]
[366070304,1750048252959,-500.0,0.00016438,2]
[366070305,1750048252969,-150.0,0.00016438,2]
[366070306,1750048252979,-691.7,0.00016438,2]
[366070307,1750048252988,-1503.66,0.00016438,2]
[366070308,1750048252998,-150.0,0.00016438,2]
[366070309,1750048253008,-500.0,0.00016438,2]
[366070310,1750048253017,-1979.07,0.00016438,2]
[366070311,1750048253027,-490.0,0.00016438,2]
[366070312,1750048253036,-230.747168,0.00016438,2]
[366070313,1750048253046,-150.0,0.00016438,2]
[366070314,1750048253056,-150.0,0.00016438,2]
[366070315,1750048253065,-490.0,0.00016438,2]
[366070316,1750048253075,-490.0,0.00016438,2]
[366070317,1750048253084,-150.0,0.00016438,2]
[366070318,1750048253094,-151.446172,0.00016438,2]
[366070319,1750048253103,-1875.34,0.00016438,2]
[366070320,1750048253112,-800.76,0.00016438,2]
[366070321,1750048253123,-490.0,0.00016438,2]
[366070322,1750048253133,-493.11991115,0.00016438,2]
[366070323,1750048253143,-650.1,0.00016438,2]
[366070324,1750048253153,-150.0,0.00016438,2]
[366070325,1750048253164,-2759.04,0.00016438,2]
[366070326,1750048253174,-490.0,0.00016438,2]
[366070327,1750048253185,-150.0,0.00016438,2]
[366070328,1750048253194,-367.42976773,0.00016438,2]
[366070329,1750048253204,-500.0,0.00016438,2]
[366070330,1750048253214,-1450.17,0.00016438,2]
[366070331,1750048253224,-150.0,0.00016438,2]
[366070332,1750048253233,-5622.86,0.00016438,2]
[366070333,1750048253243,-490.0,0.00016438,2]
[366070334,1750048253252,-712.47,0.00016438,2]
[366070335,1750048253262,-490.0,0.00016438,2]
[366070336,1750048253272,-553.89259933,0.00016438,2]
[366070337,1750048253282,-11685.84,0.00016438,2]
[366070338,1750048253292,-1520.82,0.00016438,2]
[366070339,1750048253302,-395.73284872,0.00016438,2]
[366070340,1750048253312,-491.96164906,0.00016438,2]
[366070341,1750048253322,-490.0,0.00016438,2]
[366070342,1750048253331,-490.0,0.00016438,2]
[366070343,1750048253341,-151.0,0.00016438,2]
[366070344,1750048253350,-1631.73,0.00016438,2]
[366070345,1750048253360,-513.07576529,0.00016438,2]
[366070346,1750048253370,-4350.85,0.00016438,2]
[366070347,1750048253380,-490.0,0.00016438,2]
[366070348,1750048253390,-1971.04,0.00016438,2]
[366070349,1750048253400,-1060.08,0.00016438,2]
[366070350,1750048253410,-494.135658,0.00016438,2]
[366070351,1750048253420,-490.0,0.00016438,2]
[366070352,1750048253429,-842.55,0.00016438,2]
[366070353,1750048253439,-24281.64,0.00016438,2]
[366070354,1750048253448,-539.82,0.00016438,2]
[366070355,1750048253458,-150.0,0.00016438,2]
[366070356,1750048253468,-1364.91,0.00016438,2]
[366070357,1750048253477,-12298.08,0.00016438,2]
[366070358,1750048253487,-490.0,0.00016438,2]
[366070359,1750048253496,-2096.32,0.00016438,2]
[366070360,1750048253506,-1130.27,0.00016438,2]
[366070361,1750048253515,-151.0,0.00016438,2]
[366070362,1750048253525,-495.97213732,0.00016438,2]
[366070363,1750048253534,-495.14018756,0.00016438,2]
[366070364,1750048253544,-6590.69,0.00016438,2]
[366070365,1750048253553,-5206.0,0.00016438,2]
[366070366,1750048253563,-2160.69,0.00016438,2]
[366070367,1750048253573,-3769.93,0.00016438,2]
[366070368,1750048253582,-958.2,0.00016438,2]
[366070369,1750048253592,-491.74741739,0.00016438,2]
[366070370,1750048253602,-572.49,0.00016438,2]
[366070371,1750048253612,-490.0,0.00016438,2]
[366070372,1750048253621,-490.0,0.00016438,2]
[366070373,1750048253630,-494.45469456,0.00016438,2]
[366070374,1750048253640,-2154.12,0.00016438,2]
[366070375,1750048253649,-491.2364745,0.00016438,2]
[366070376,1750048253659,-2184.61,0.00016438,2]
[366070377,1750048253670,-8197.88,0.00016438,2]
[366070378,1750048253679,-966.75,0.00016438,2]
[366070379,1750048253689,-1976.38,0.00016438,2]
[366070380,1750048253699,-501.88,0.00016438,2]
[366070381,1750048253708,-1327.54,0.00016438,2]
[366070382,1750048253718,-502.67955081,0.00016438,2]
[366070383,1750048253728,-704.58,0.00016438,2]
[366070384,1750048253738,-938.52,0.00016438,2]
[366070385,1750048253747,-574.41,0.00016438,2]
[366070386,1750048253757,-1498.06,0.00016438,2]
[366070387,1750048253768,-2642.8,0.00016438,2]
[366070388,1750048253777,-1477.2,0.00016438,2]
[366070389,1750048253787,-497.63430465,0.00016438,2]
[366070390,1750048253797,-1274.32,0.00016438,2]
[366070391,1750048253807,-1198.41,0.00016438,2]
[366070392,1750048253816,-490.0,0.00016438,2]
[366070393,1750048253826,-151.0,0.00016438,2]
[366070394,1750048253836,-541.69,0.00016438,2]
[366070395,1750048253846,-1096.28,0.00016438,2]
[366070396,1750048253856,-490.0,0.00016438,2]
[366070397,1750048253866,-151.0,0.00016438,2]
[366070398,1750048253875,-936.59,0.00016438,2]
[366070399,1750048253885,-151.0,0.00016438,2]
[366070400,1750048253896,-383.1466226,0.00016438,2]
[366070401,1750048253906,-151.0,0.00016438,2]
[366070402,1750048253921,-3382.57,0.00016438,2]
[366070403,1750048253931,-491.77458165,0.00016438,2]
[366070404,1750048253941,-1915.31,0.00016438,2]
[366070405,1750048253951,-1429.76,0.00016438,2]
[366070406,1750048253961,-490.0,0.00016438,2]
[366070407,1750048253971,-151.0,0.00016438,2]
[366070408,1750048253981,-151.0,0.00016438,2]
[366070409,1750048253992,-322.96015572,0.00016438,2]
[366070410,1750048254003,-490.0,0.00016438,2]
[366070411,1750048254013,-490.0,0.00016438,2]
[366070412,1750048254023,-2795.33,0.00016438,2]
[366070413,1750048254033,-653.9,0.00016438,2]
[366070414,1750048254043,-2621.51,0.00016438,2]
[366070415,1750048254052,-2317.18,0.00016438,2]
[366070416,1750048254062,-8022.28,0.00016438,2]
[366070417,1750048254071,-490.0,0.00016438,2]
[366070418,1750048254081,-496.45697289,0.00016438,2]
[366070419,1750048254090,-2932.16,0.00016438,2]
[366070420,1750048254100,-490.0,0.00016438,2]
[366070421,1750048254111,-361.69596325,0.00016438,2]
[366070422,1750048254120,-490.0,0.00016438,2]
[366070423,1750048254130,-491.61154044,0.00016438,2]
[366070424,1750048254140,-490.0,0.00016438,2]
[366070425,1750048254151,-2460.49,0.00016438,2]
[366070426,1750048254161,-275.491873,0.00016438,2]
[366070427,1750048254170,-936.1,0.00016438,2]
[366070428,1750048254187,-1489.38,0.00016438,2]
[366070429,1750048254197,-1927.17,0.00016438,2]
[366070430,1750048254207,-1354.81,0.00016438,2]
[366070431,1750048254216,-1242.28,0.00016438,2]
[366070432,1750048254226,-1015.34,0.00016438,2]
[366070433,1750048254236,-4518.67,0.00016438,2]
[366070434,1750048254246,-522.5,0.00016438,2]
[366070435,1750048254255,-211.37204422,0.00016438,2]
[366070436,1750048254265,-3639.18,0.00016438,2]
[366070437,1750048254274,-275.491873,0.00016438,2]
[366070438,1750048254284,-490.0,0.00016438,2]
[366070439,1750048254294,-2347.63,0.00016438,2]
[366070440,1750048254303,-490.0,0.00016438,2]
[366070441,1750048254312,-491.42602028,0.00016438,2]
[366070442,1750048254325,-1583.42,0.00016438,2]
[366070443,1750048254334,-23130.27,0.00016438,2]
[366070444,1750048254344,-490.0,0.00016438,2]
[366070445,1750048254353,-846.1,0.00016438,2]
[366070446,1750048254363,-1533.12,0.00016438,2]
[366070447,1750048254373,-914.3,0.00016438,2]
[366070448,1750048254383,-928.1,0.00016438,2]
[366070449,1750048254392,-543.80454121,0.00016438,2]
[366070450,1750048254402,-749.4,0.00016438,2]
[366070451,1750048254411,-595.85,0.00016438,2]
[366070452,1750048254421,-490.0,0.00016438,2]
[366070453,1750048254430,-1029.2,0.00016438,2]
[366070454,1750048254440,-8748.53,0.00016438,2]
[366070455,1750048254449,-1181.05,0.00016438,2]
[366070456,1750048254459,-8811.39,0.00016438,2]
[366070457,1750048254469,-490.0,0.00016438,2]
[366070458,1750048254478,-490.0,0.00016438,2]
[366070459,1750048254488,-1866.44,0.00016438,2]
[366070460,1750048254498,-1001.33,0.00016438,2]
[366070461,1750048254508,-365.04704999,0.00016438,2]
[366070462,1750048254519,-492.93608638,0.00016438,2]
[366070463,1750048254528,-3751.35,0.00016438,2]
[366070464,1750048254538,-1922.17,0.00016438,2]
[366070465,1750048254547,-490.0,0.00016438,2]
[366070466,1750048254559,-1615.21,0.00016438,2]
[366070467,1750048254568,-837.86,0.00016438,2]
[366070468,1750048254578,-1336.7,0.00016438,2]
[366070469,1750048254588,-889.43,0.00016438,2]
[366070470,1750048254598,-1627.94,0.00016438,2]
[366070471,1750048254609,-19828.6,0.00016438,2]
[366070472,1750048254620,-1022.21,0.00016438,2]
[366070473,1750048254631,-1390.25,0.00016438,2]
[366070474,1750048254641,-1387.96,0.00016438,2]
[366070475,1750048254651,-490.0,0.00016438,2]
[366070476,1750048254662,-490.0,0.00016438,2]
[366070477,1750048254672,-6313.97,0.00016438,2]
[366070478,1750048254681,-1051.09,0.00016438,2]
[366070479,1750048254691,-1530.87,0.00016438,2]
[366070480,1750048254701,-1602.19,0.00016438,2]
[366070481,1750048254711,-477.68011863,0.00016438,2]
[366070482,1750048254720,-1159.08,0.00016438,2]
[366070483,1750048254730,-1063.85,0.00016438,2]
[366070484,1750048254739,-151.0,0.00016438,2]
[366070485,1750048254749,-216.587078,0.00016438,2]
[366070486,1750048254759,-636.34,0.00016438,2]
[366070487,1750048254870,-490.0,0.00016438,2]
[366070488,1750048254879,-490.0,0.00016438,2]
[366070489,1750048254889,-4830.77,0.00016438,2]
[366070490,1750048254899,-490.0,0.00016438,2]
[366070491,1750048254912,-1559.18,0.00016438,2]
[366070492,1750048254924,-26377.74,0.00016438,2]
[366070493,1750048254934,-5065.08,0.00016438,2]
[366070494,1750048254944,-490.0,0.00016438,2]
[366070495,1750048254954,-523.57,0.00016438,2]
[366070496,1750048254964,-4375.9,0.00016438,2]
[366070497,1750048254973,-1768.55,0.00016438,2]
[366070498,1750048254983,-602.26,0.00016438,2]
[366070499,1750048254993,-1946.05,0.00016438,2]
[366070500,1750048255003,-602.26,0.00016438,2]
[366070501,1750048255013,-602.26,0.00016438,2]
[366070502,1750048255024,-500.4,0.00016438,2]
[366070503,1750048255033,-602.26,0.00016438,2]
[366070504,1750048255043,-1825.39,0.00016438,2]
[366070505,1750048255053,-490.0,0.00016438,2]
[366070506,1750048255062,-695.71,0.00016438,2]
[366070507,1750048255072,-440.0,0.00016438,2]
[366070508,1750048255081,-490.0,0.00016438,2]
[366070509,1750048255091,-1444.72,0.00016438,2]
[366070510,1750048255100,-1480.78,0.00016438,2]
[366070511,1750048255110,-490.0,0.00016438,2]
[366070512,1750048255121,-490.0,0.00016438,2]
[366070513,1750048255130,-1773.27,0.00016438,2]
[366070514,1750048255140,-3172.04,0.00016438,2]
[366070515,1750048255149,-4029.87,0.00016438,2]
[366070516,1750048255159,-3936.07,0.00016438,2]
[366070517,1750048255169,-490.0,0.00016438,2]
[366070518,1750048255179,-501.94,0.00016438,2]
[366070519,1750048255190,-852.56,0.00016438,2]
[366070520,1750048255200,-490.0,0.00016438,2]
[366070521,1750048255210,-151.0,0.00016438,2]
[366070522,1750048255220,-491.07193339,0.00016438,2]
[366070523,1750048255230,-1326.57,0.00016438,2]
[366070524,1750048255240,-490.0,0.00016438,2]
[366070525,1750048255250,-1607.2,0.00016438,2]
[366070526,1750048255260,-769.08,0.00016438,2]
[366070527,1750048255270,-490.0,0.00016438,2]
[366070528,1750048255280,-490.0,0.00016438,2]
[366070529,1750048255289,-490.0,0.00016438,2]
[366070530,1750048255299,-151.0,0.00016438,2]
[366070531,1750048255308,-151.0,0.00016438,2]
[366070532,1750048255317,-2034.18,0.00016438,2]
[366070533,1750048255327,-2448.75,0.00016438,2]
[366070534,1750048255337,-2056.67,0.00016438,2]
[366070535,1750048255346,-4046.34,0.00016438,2]
[366070536,1750048255356,-1721.71,0.00016438,2]
[366070537,1750048255365,-271.99095853,0.00016438,2]
[366070538,1750048255375,-490.0,0.00016438,2]
[366070539,1750048255384,-490.0,0.00016438,2]
[366070540,1750048255394,-490.0,0.00016438,2]
[366070541,1750048255403,-490.0,0.00016438,2]
[366070542,1750048255414,-490.0,0.00016438,2]
[366070543,1750048255423,-490.0,0.00016438,2]
[366070544,1750048255433,-173.68808729,0.00016438,2]
[366070545,1750048255443,-1162.38,0.00016438,2]
[366070546,1750048255453,-302.64,0.00016438,2]
[366070547,1750048255463,-324.6713034,0.00016448,2]
[366070548,1750048255472,-4255.29837192,0.00016452,2]
[366070549,1750048255482,-500.0,0.00016456,2]
[366070550,1750048255491,-200.0,0.00016456,2]
[366070551,1750048255501,-500.0,0.00016457,2]
[366070552,1750048255510,-200.0,0.00016457,2]
[366070553,1750048255519,-200.0,0.00016457,2]
[366070554,1750048255528,-16400.0,0.00016463,7]
[366070555,1750048255538,-150.0,0.00016465,2]
[366070556,1750048255548,-150.0,0.00016465,2]
[366070557,1750048255559,-150.0,0.00016465,2]
[366070558,1750048255568,-151.36736868,0.00016465,2]
[366070559,1750048255578,-150.0,0.00016465,2]
[366070560,1750048255587,-150.0,0.00016465,2]
[366070561,1750048255596,-150.0,0.00016465,2]
[366070562,1750048255605,-500.0,0.00016465,2]
[366070563,1750048255616,-500.0,0.00016465,2]
[366070564,1750048255625,-150.0,0.00016465,2]
[366070565,1750048255637,-150.96623907,0.00016465,2]
[366070566,1750048255648,-150.0,0.00016465,2]
[366070567,1750048255657,-150.0,0.00016465,2]
[366070568,1750048255668,-150.20986126,0.00016465,2]
[366070569,1750048255678,-505.71163978,0.00016465,2]
[366070570,1750048255687,-150.0,0.00016465,2]
[366070571,1750048255697,-150.0,0.00016465,2]
[366070572,1750048255707,-150.0,0.00016465,2]
[366070573,1750048255717,-154.37777663,0.00016465,2]
[366070574,1750048255726,-502.07311355,0.00016465,2]
[366070575,1750048255743,-155.90329599,0.00016465,2]
[366070576,1750048255752,-150.0,0.00016465,2]
[366070577,1750048255762,-324.6713034,0.00016484,2]
[366070578,1750048255771,-9905.5980765,0.00016485,2]
[366070579,1750048255781,-4255.29837192,0.00016486,2]